bitfinex/quotes_ETHUSD_20250630
["timestamp","ask_amount","ask_price","bid_price","bid_amount"]
[1751262396022,0.2002,2502.6,2502.2,9.63712176]
[1751262396430,0.2002,2502.6,2502.2,3.19712176]
[1751262396790,0.8048,2502.5,2502.2,3.19712176]
[1751262397851,0.8048,2502.5,2502.1,11.48146168]
[1751262399123,0.8048,2502.5,2502.3,0.7]
[1751262400294,1.22506921,2502.5,2502.3,0.7]
[1751262401308,4.42188264,2502.5,2502.3,0.7]
[1751262401898,1.22506921,2502.5,2502.3,0.7]
[1751262402110,4.4218857,2502.5,2502.3,0.7]
[1751262403218,1.22506921,2502.5,2502.3,0.7]
[1751262404128,4.42188162,2502.5,2502.3,0.7]
[1751262404295,3.6591391,2502.4,2502.3,0.7]
[1751262404495,4.4280391,2502.4,2502.3,0.7]
[1751262407712,0.1992,2502.3,2502.0,0.02]
[1751262409541,0.1992,2502.3,2502.2,0.7]
[1751262415944,0.1992,2502.3,2502.2,3.89718647]
[1751262420068,0.1992,2502.3,2502.1,3.19730591]
[1751262420566,0.1992,2502.3,2502.1,1.72509618]
[1751262420755,0.1992,2502.3,2502.2,3.19718647]
[1751262426063,0.1992,2502.3,2502.1,3.19727094]
[1751262427570,0.1992,2502.3,2502.2,3.19718647]
[1751262428674,0.2092,2502.3,2502.2,3.19718647]
[1751262433036,0.01,2502.3,2502.2,4.61775603]
[1751262433244,0.01,2502.3,2502.2,4.81695603]
[1751262434150,0.01,2502.3,2502.2,5.51695603]
[1751262434538,0.01,2502.3,2502.2,20.27695603]
[1751262445992,0.01,2502.3,2502.2,15.51695603]
[1751262446389,0.01,2502.3,2502.2,14.75775603]
[1751262451276,0.01,2502.3,2502.2,15.55335603]
[1751262451663,0.01,2502.3,2502.2,14.75775603]
[1751262452298,0.01,2502.3,2502.2,10.7]
[1751262452859,0.8353,2502.3,2502.2,0.7]
[1751262453106,1.0345,2502.3,2502.0,0.02]
[1751262453482,0.8253,2502.2,2502.0,0.02]
[1751262453688,0.1992,2502.1,2502.0,0.02]
[1751262454218,0.1992,2502.1,2502.0,3.21744204]
[1751262455314,0.1992,2502.1,2502.0,0.02]
[1751262458420,0.62236247,2502.1,2502.0,0.02]
[1751262460887,0.1992,2502.1,2502.0,0.02]
[1751262461091,3.39651425,2502.1,2502.0,0.02]
[1751262462996,4.19491425,2502.1,2502.0,0.02]
[1751262467000,4.74491425,2502.1,2502.0,0.02]
[1751262468633,11.18291425,2502.1,2502.0,0.02]
[1751262468828,13.23477634,2502.1,2502.0,0.02]
[1751262480835,8.68906209,2502.1,2502.0,0.02]
[1751262481041,6.6372,2502.1,2502.0,0.02]
[1751262482037,0.1992,2502.1,2502.0,0.02]
[1751262482242,6.6372,2502.1,2502.0,0.02]
[1751262486058,0.1992,2502.1,2502.0,3.21744204]
[1751262486346,0.1992,2502.1,2502.0,3.93964026]
[1751262488022,0.1992,2502.1,2502.0,3.21744204]
[1751262488222,0.1992,2502.1,2502.0,0.02]
[1751262488841,3.39651425,2502.1,2502.0,0.02]
[1751262489034,3.94651425,2502.1,2502.0,0.02]
[1751262489546,4.76301425,2502.1,2502.0,0.02]
[1751262489849,6.81668755,2502.1,2502.0,0.02]
[1751262492753,3.6193733,2502.1,2502.0,0.02]
[1751262492931,8.0027,2502.1,2502.0,0.02]
[1751262493134,7.1862,2502.1,2502.0,0.02]
[1751262493532,6.6362,2502.1,2502.0,0.02]
[1751262495568,6.6462,2502.1,2502.0,0.02]
[1751262496622,6.6472,2502.1,2502.0,0.02]
[1751262498828,11.79435325,2502.1,2502.0,0.02]
[1751262501347,8.597039,2502.1,2502.0,0.02]
[1751262501732,9.147039,2502.1,2502.0,0.02]
[1751262502054,12.34435325,2502.1,2502.0,0.02]
[1751262504059,9.147039,2502.1,2502.0,0.02]
[1751262504253,6.6462,2502.1,2502.0,0.02]
[1751262508173,0.2092,2502.1,2502.0,0.02]
[1751262508353,6.6462,2502.1,2502.0,0.02]
[1751262515681,0.2092,2502.1,2502.0,0.02]
[1751262515891,0.2092,2502.1,2502.0,3.21744204]
[1751262516057,0.2092,2502.1,2502.0,4.69194116]
[1751262516980,6.6462,2502.1,2502.0,0.851]
[1751262517179,6.6462,2502.1,2502.0,0.02]
[1751262521781,10.39351425,2502.1,2502.0,0.02]
[1751262532662,16.52202681,2502.1,2502.0,0.02]
[1751262533007,17.27252681,2502.1,2502.0,0.02]
[1751262533297,19.32050001,2502.1,2502.0,0.02]
[1751262535090,13.19198745,2502.1,2502.0,0.02]
[1751262535876,14.83398745,2502.1,2502.0,0.02]
[1751262536073,20.96250001,2502.1,2502.0,0.02]
[1751262536274,30.96250001,2502.1,2502.0,0.02]
[1751262543367,31.91975934,2502.1,2502.0,0.02]
[1751262545317,14.50242547,2501.7,2501.6,0.02]
[1751262545516,27.06793803,2501.7,2501.6,0.02]
[1751262546019,28.02433127,2501.7,2501.6,0.02]
[1751262546482,27.06793803,2501.7,2501.6,0.02]
[1751262556019,27.95633803,2501.7,2501.6,0.02]
[1751262556222,30.00431123,2501.7,2501.6,0.02]
[1751262556401,30.77281123,2501.7,2501.6,0.02]
[1751262564870,31.72869204,2501.7,2501.6,0.02]
[1751262570469,32.92676243,2501.7,2501.6,0.02]
[1751262570670,32.92676243,2501.7,2501.5,0.002]
[1751262570671,0.55,2501.2,2500.8,0.02]
[1751262570964,9.32723307,2501.0,2500.8,0.02]
[1751262572135,9.87723307,2501.0,2500.8,0.02]
[1751262572670,16.31523307,2501.0,2500.8,0.02]
[1751262574536,26.31523307,2501.0,2500.8,0.02]
[1751262574733,28.36320627,2501.0,2500.8,0.02]
[1751262580380,22.23469371,2501.0,2500.8,0.02]
[1751262590572,15.79669371,2501.0,2500.8,0.02]
[1751262590891,1.642,2501.1,2500.9,0.7727]
[1751262591094,9.995,2501.7,2500.9,0.7727]
[1751262591095,6.439,2501.0,2500.9,0.7727]
[1751262597901,3.1983983,2501.3,2500.9,0.7727]
[1751262598099,6.438,2501.2,2500.9,0.7727]
[1751262599397,6.438,2501.2,2500.9,0.40116369]
[1751262599604,6.438,2501.2,2501.0,0.8328]
[1751262600482,6.438,2501.2,2500.9,0.002]
[1751262600483,0.1992,2501.0,2500.9,0.002]
[1751262600807,3.39792051,2501.0,2500.9,0.002]
[1751262610207,6.6372,2501.0,2500.9,0.8052]
[1751262610613,9.83592051,2501.0,2500.9,0.8052]
[1751262611308,0.1992,2501.0,2500.9,0.8052]
[1751262611510,6.6372,2501.0,2500.9,0.8052]
[1751262611714,9.83592051,2501.0,2500.9,0.8052]
[1751262612028,0.1992,2501.0,2500.9,0.8052]
[1751262612382,6.6372,2501.0,2500.9,1.20761911]
[1751262612785,6.6372,2501.0,2500.9,0.8052]
[1751262613015,0.1992,2501.0,2500.9,0.8052]
[1751262613189,6.6372,2501.0,2500.9,0.8052]
[1751262616122,0.1992,2501.0,2500.9,0.8052]
[1751262616306,6.6362,2501.0,2500.9,0.8052]
[1751262618588,6.6362,2501.0,2500.9,4.40647335]
[1751262618917,0.1992,2501.0,2500.9,4.40647335]
[1751262622785,0.1992,2501.0,2500.9,1.20762494]
[1751262623224,0.1992,2501.0,2500.9,4.40647335]
[1751262624726,0.20861087,2501.2,2501.0,3.19870968]
[1751262625017,0.40781087,2501.2,2501.1,1.25793346]
[1751262625223,0.1992,2501.2,2501.1,0.8173]
[1751262628328,0.40780611,2501.2,2501.1,0.8173]
[1751262636343,0.40780611,2501.2,2501.1,0.8173]
[1751262637244,0.40780611,2501.2,2500.9,3.20083056]
[1751262637444,0.40780611,2501.2,2500.9,0.8208]
[1751262637737,3.60631134,2501.2,2500.9,0.8208]
[1751262639247,3.60631134,2501.2,2500.9,0.002]
[1751262639418,0.40780611,2501.2,2500.9,0.002]
[1751262643169,3.19872051,2501.0,2500.9,0.002]
[1751262643520,3.39792051,2501.0,2500.9,0.002]
[1751262645763,0.1992,2501.0,2500.9,0.002]
[1751262647773,3.39792051,2501.0,2500.9,0.002]
[1751262648070,0.1992,2501.0,2500.9,0.002]
[1751262648671,3.39792051,2501.0,2500.9,0.702]
[1751262651856,0.1992,2501.0,2500.9,0.702]
[1751262653066,0.1992,2501.2,2501.0,0.7975]
[1751262654949,3.19782547,2501.7,2501.0,4.19530668]
[1751262655273,0.1992,2501.5,2501.1,0.8059]
[1751262655578,3.3972828,2501.5,2501.1,0.8059]
[1751262656773,3.19826677,2501.4,2501.1,0.8059]
[1751262657275,3.19826677,2501.4,2501.1,2.34569433]
[1751262660891,3.19833686,2501.3,2500.9,0.702]
[1751262661054,3.39753686,2501.3,2500.9,0.002]
[1751262661382,3.19846504,2501.2,2500.9,0.002]
[1751262661588,3.19846504,2501.2,2500.9,1.42174204]
[1751262661947,3.19846504,2501.2,2500.9,0.002]
[1751262662182,3.19847396,2501.2,2500.9,0.002]
[1751262662484,3.19872051,2501.0,2500.9,0.002]
[1751262667160,9.63472051,2501.0,2500.9,0.002]
[1751262674290,17.11853307,2501.0,2500.9,0.002]
[1751262674662,19.31434699,2501.0,2500.9,0.002]
[1751262684970,12.87834699,2501.0,2500.9,0.002]
[1751262685171,20.95634699,2501.0,2500.9,0.002]
[1751262686001,30.95634699,2501.0,2500.9,0.002]
[1751262687099,31.25416024,2501.0,2500.9,0.002]
[1751262689384,32.21047729,2501.0,2500.9,0.002]
[1751262693005,4.73694841,2500.9,2500.8,0.02]
[1751262693310,7.1030435,2500.9,2500.8,0.02]
[1751262694695,17.1030435,2500.9,2500.8,0.02]
[1751262703586,30.76055606,2500.9,2500.8,0.02]
[1751262703786,31.31055606,2500.9,2500.8,0.02]
[1751262709930,9.87761681,2500.7,2500.6,0.002]
[1751262710114,16.31561681,2500.7,2500.6,0.002]
[1751262710314,17.2725584,2500.7,2500.6,0.002]
[1751262711142,16.31561681,2500.7,2500.6,0.002]
[1751262712339,17.27283516,2500.7,2500.6,0.002]
[1751262712524,18.6826132,2500.7,2500.6,0.002]
[1751262712729,17.72539485,2500.7,2500.6,0.002]
[1751262713311,18.68279294,2500.7,2500.6,0.002]
[1751262713745,12.24479294,2500.7,2500.6,0.002]
[1751262713908,17.72539485,2500.7,2500.6,0.002]
[1751262714111,18.68303009,2500.7,2500.6,0.002]
[1751262714312,18.8916889,2500.7,2500.6,0.002]
[1751262715846,20.5326889,2500.7,2500.6,0.002]
[1751262718440,6.32517634,2500.7,2500.6,0.002]
[1751262718659,12.9943983,2500.7,2500.6,0.002]
[1751262722253,22.9943983,2500.7,2500.6,0.002]
[1751262723317,21.3533983,2500.7,2500.6,0.002]
[1751262726056,4.9153983,2500.7,2500.6,0.002]
[1751262726359,10.39576306,2500.7,2500.6,0.002]
[1751262726658,13.66652882,2500.7,2500.6,0.002]
[1751262727062,12.70889358,2500.7,2500.6,0.002]
[1751262737177,12.49923477,2500.7,2500.6,0.002]
[1751262741086,6.06223477,2500.7,2500.6,0.002]
[1751262741292,12.49923477,2500.7,2500.6,0.002]
[1751262748324,10.18610425,2500.7,2500.6,0.002]
[1751262749716,3.74910425,2500.7,2500.6,0.002]
[1751262749924,10.18610425,2500.7,2500.6,0.002]
[1751262757129,3.74910425,2500.7,2500.6,0.7845]
[1751262757436,9.63500261,2500.8,2500.6,0.7845]
[1751262757643,3.19910425,2500.7,2500.6,0.7845]
[1751262758500,9.63510425,2500.7,2500.6,0.7845]
[1751262758909,6.436,2500.7,2500.6,0.7845]
[1751262759652,3.19902309,2500.8,2500.6,0.7845]
[1751262759813,9.63502309,2500.8,2500.6,0.7845]
[1751262759999,3.19902309,2500.8,2500.6,0.7845]
[1751262767227,3.19910425,2500.7,2500.6,0.7845]
[1751262767539,3.19910425,2500.7,2500.6,0.002]
[1751262770181,3.19902119,2500.8,2500.6,0.002]
[1751262775461,0.95853139,2501.0,2500.6,0.002]
[1751262775687,0.40785529,2500.8,2500.7,0.7807]
[1751262775888,0.40785529,2500.8,2500.7,1.17908576]
[1751262776079,0.1992,2500.8,2500.7,1.17908576]
[1751262778607,0.1992,2500.8,2500.7,0.7807]
[1751262783317,0.1992,2500.8,2500.7,3.97980425]
[1751262783675,0.1992,2500.8,2500.7,0.7807]
[1751262785407,0.1992,2500.8,2500.7,3.97980425]
[1751262792614,0.55,2501.4,2500.7,3.97980425]
[1751262792810,0.1992,2501.0,2500.8,3.91705517]
[1751262794302,0.40784961,2501.0,2500.8,3.91705517]
[1751262794911,0.40784961,2501.0,2500.8,0.71810292]
[1751262795081,0.40784961,2501.0,2500.7,7.2137]
[1751262796121,0.40784961,2501.0,2500.7,0.7807]
[1751262799607,3.60657809,2501.0,2500.7,0.7807]
[1751262800099,0.40784961,2501.0,2500.7,0.7807]
[1751262800683,0.40784961,2501.0,2500.7,5.34137129]
[1751262804146,0.40784961,2501.0,2500.7,2.14232341]
[1751262804327,0.40784961,2501.0,2500.7,8.57532341]
[1751262804910,3.60660109,2501.0,2500.7,2.14232341]
[1751262805119,3.19886239,2500.9,2500.6,0.002]
[1751262805317,3.19886239,2500.9,2500.6,6.435]
[1751262805518,3.60662556,2501.0,2500.6,6.435]
[1751262811361,0.40784961,2501.0,2500.6,9.6342239]
[1751262811557,0.40784961,2501.0,2500.7,4.23931177]
[1751262811763,0.40784961,2501.0,2500.7,1.04021239]
[1751262814055,0.40784961,2501.0,2500.6,9.6341673]
[1751262814636,0.40784961,2501.0,2500.7,3.19909764]
[1751262815266,3.40743546,2501.0,2500.7,6.432]
[1751262815567,0.1992,2500.9,2500.7,6.432]
[1751262819536,3.39805166,2500.9,2500.7,6.432]
[1751262821267,0.1992,2500.9,2500.7,6.432]
[1751262835977,0.1992,2500.9,2500.7,6.431]
[1751262839189,3.3980648,2500.9,2500.7,6.431]
[1751262839479,0.1992,2500.9,2500.8,0.7]
[1751262844894,3.39804841,2500.9,2500.8,0.7]
[1751262845100,0.1992,2500.9,2500.8,0.7]
[1751262845997,4.22224841,2500.9,2500.8,0.7]
[1751262846297,4.22224841,2500.9,2500.7,6.431]
[1751262846298,3.1990323,2500.8,2500.7,6.431]
[1751262848694,4.76522111,2500.9,2500.7,6.431]
[1751262849606,0.1992,2500.7,2500.6,6.433]
[1751262850901,0.1992,2500.7,2500.6,0.002]
[1751262854302,0.1992,2500.7,2500.6,0.702]
[1751262864818,0.1992,2500.7,2500.6,5.42572538]
[1751262865023,0.1992,2500.7,2500.6,11.16280184]
[1751262869239,0.1992,2500.7,2500.6,3.0529932]
[1751262872360,0.1992,2500.7,2500.6,2.2264932]
[1751262872644,0.1992,2500.7,2500.6,7.132]
[1751262874863,0.1992,2500.7,2500.6,0.702]
[1751262875055,0.1992,2500.7,2500.6,7.132]
[1751262876448,0.1992,2500.7,2500.6,0.702]
[1751262876856,0.1992,2500.7,2500.6,7.132]
[1751262879446,0.1992,2500.7,2500.6,7.86532]
[1751262882188,0.1992,2500.7,2500.6,11.89045218]
[1751262888526,0.1992,2501.0,2500.9,3.9558224]
[1751262888729,0.20865342,2501.1,2501.0,3.19872051]
[1751262888891,0.20865342,2501.1,2501.0,8.10929697]
[1751262889101,0.20865342,2501.1,2501.0,10.44230469]
[1751262890208,0.1992,2501.4,2501.0,10.44230469]
[1751262890209,0.1992,2501.4,2501.1,3.19850339]
[1751262890382,0.1992,2501.4,2501.2,6.429]
[1751262893616,0.1992,2501.4,2501.3,6.428]
[1751262894012,0.1992,2501.4,2501.0,5.53168678]
[1751262894181,0.1992,2501.4,2501.1,6.428]
[1751262895017,0.1992,2501.4,2501.1,9.62658843]
[1751262899424,0.1992,2501.4,2501.1,6.428]
[1751262900634,0.20864445,2501.6,2501.3,3.19827271]
[1751262900922,0.40784445,2501.6,2501.4,6.427]
[1751262901103,0.40784445,2501.6,2501.4,7.79162374]
[1751262902130,0.40784445,2501.6,2501.4,1.36462374]
[1751262902335,0.7853,2501.4,2500.8,5.535]
[1751262902503,0.1992,2501.3,2500.9,9.62584371]
[1751262903517,3.39760419,2501.3,2500.8,8.93312809]
[1751262903733,3.19846656,2501.2,2500.9,6.427]
[1751262904355,3.39758525,2501.3,2500.9,6.427]
[1751262906344,3.99338806,2501.2,2500.8,1.90037962]
[1751262906642,0.7949,2501.2,2501.0,6.427]
[1751262908224,0.7949,2501.2,2500.9,3.1988136]
[1751262908535,0.7949,2501.2,2501.0,6.427]
[1751262908732,3.19865679,2501.1,2500.7,0.1992]
[1751262908935,0.1992,2501.0,2500.8,6.427]
[1751262909725,0.1992,2501.0,2500.7,0.1992]
[1751262909930,0.1992,2501.0,2500.8,6.427]
[1751262910936,3.19865098,2501.1,2500.8,6.427]
[1751262911137,0.1992,2500.9,2500.8,6.427]
[1751262913949,0.1992,2500.9,2500.6,0.002]
[1751262914154,0.1992,2500.9,2500.7,6.427]
[1751262914555,0.9559,2500.9,2500.6,9.62822765]
[1751262914758,0.9559,2500.9,2500.6,10.93110987]
[1751262915063,0.1992,2500.9,2500.7,3.19908299]
[1751262915734,0.1992,2500.9,2500.6,8.54518222]
[1751262915735,0.1992,2500.9,2500.8,0.01]
[1751262926258,0.1992,2500.9,2500.8,3.20897632]
[1751262926458,0.1992,2500.9,2500.8,0.01]
[1751262927251,0.2192,2500.9,2500.8,3.20897632]
[1751262928566,0.2192,2500.9,2500.8,0.01]
[1751262929557,0.2192,2500.9,2500.8,3.20897632]
[1751262929757,0.02,2500.9,2500.8,3.20897632]
[1751262930080,0.02,2500.9,2500.8,5.18221918]
[1751262934350,0.02,2500.9,2500.8,45.14019576]
[1751262934551,0.02,2500.9,2500.8,43.66183176]
[1751262935448,0.02,2500.9,2500.8,52.27596776]
[1751262935652,0.02,2501.6,2501.5,3.19808115]
[1751262935894,0.02,2501.6,2501.5,18.85225711]
[1751262936088,0.02,2501.6,2501.5,19.05145711]
[1751262939781,0.02,2501.6,2501.5,29.05145711]
[1751262939982,0.02,2501.6,2501.5,57.18249911]
[1751262940352,0.02,2501.6,2501.5,56.22023311]
[1751262940574,0.02,2501.6,2501.5,50.99481011]
[1751262941692,0.02,2501.6,2501.5,52.28260711]
[1751262941892,0.02,2501.6,2501.5,46.86360711]
[1751262942399,0.02,2501.6,2501.5,41.40850711]
[1751262943088,0.02,2501.6,2501.5,29.05145711]
[1751262943394,0.02,2501.6,2501.5,41.40850711]
[1751262943577,0.02,2501.6,2501.5,42.42651111]
[1751262943897,0.02,2501.6,2501.5,38.92651111]
[1751262944707,0.02,2501.6,2501.5,38.92451311]
[1751262945594,0.02,2501.6,2501.5,38.96528511]
[1751262946492,0.02,2501.6,2501.5,38.76275911]
[1751262947414,0.02,2501.6,2501.5,32.95145711]
[1751262947611,0.02,2501.6,2501.5,59.05145711]
[1751262948797,0.02,2501.6,2501.5,29.04745711]
[1751262949204,0.02,2501.6,2501.5,20.98845711]
[1751262949400,0.02,2501.6,2501.5,14.85230853]
[1751262949717,0.02,2501.6,2501.5,22.91130853]
[1751262950507,0.02,2501.6,2501.5,14.85230853]
[1751262950677,0.02,2501.6,2501.5,20.46090853]
[1751262950882,0.02,2501.6,2501.5,19.82128115]
[1751262951306,0.02,2501.6,2501.5,25.95742973]
[1751262952111,0.02,2501.6,2501.5,26.75322973]
[1751262962024,0.02,2501.6,2501.5,56.75322973]
[1751262963014,0.02,2501.6,2501.5,26.75322973]
[1751262963334,0.02,2501.6,2501.5,29.74837184]
[1751262963522,0.02,2501.6,2501.5,64.50837184]
[1751262965149,0.02,2501.9,2501.5,64.50837184]
[1751262965150,0.02,2501.9,2501.6,10.0]
[1751262965442,0.02,2502.0,2501.9,33.96706984]
[1751262965621,0.02,2502.0,2501.9,28.18160284]
[1751262965823,0.02,2502.0,2501.9,28.69492708]
[1751262966223,0.02,2502.0,2501.9,37.69889108]
[1751262966437,0.02,2502.0,2501.9,35.15289108]
[1751262966814,0.02,2502.0,2501.9,31.65289108]
[1751262967022,0.02,2502.0,2501.9,26.23389108]
[1751262967241,0.02,2502.0,2501.9,22.53389108]
[1751262967435,0.02,2502.0,2501.9,16.03839408]
[1751262967941,0.02,2502.0,2501.9,15.26789408]
[1751262970444,0.02,2502.0,2501.9,7.21089408]
[1751262970646,0.02,2502.0,2501.9,15.27389408]
[1751262971148,0.02,2502.0,2501.9,46.06509408]
[1751262971315,0.02,2502.0,2501.9,33.97613908]
[1751262971514,0.02,2502.0,2501.9,25.06009408]
[1751262972145,0.02,2502.0,2501.9,16.06509408]
[1751262972451,0.02,2502.0,2501.9,46.06509408]
[1751262973427,0.02,2502.0,2501.9,56.06509408]
[1751262976047,0.02,2502.0,2501.9,26.06509408]
[1751262976449,0.02,2502.0,2501.9,56.06509408]
[1751262976650,0.02,2502.0,2501.9,50.61421108]
[1751262977038,0.02,2502.0,2501.9,36.18566408]
[1751262977354,0.02,2502.0,2501.9,35.98566408]
[1751262978363,0.02,2502.0,2501.9,48.53222808]
[1751262978672,0.02,2502.0,2501.9,43.51723308]
[1751262978891,0.02,2502.0,2501.9,42.52847708]
[1751262979259,0.02,2502.0,2501.9,43.02947708]
[1751262979970,0.02,2502.0,2501.9,42.52847708]
[1751262980499,0.02,2502.0,2501.9,50.11247708]
[1751262981390,0.02,2502.0,2501.9,60.82509408]
[1751262984484,0.02,2502.2,2502.1,34.02051425]
[1751262984684,0.02,2502.2,2502.1,64.8086586]
[1751262984884,0.02,2502.2,2502.1,65.0078586]
[1751262987425,0.8189,2502.9,2502.8,3.19642]
[1751262987627,0.8189,2502.9,2502.8,9.62042]
[1751262988126,0.8189,2502.9,2502.8,6.424]
[1751262988438,0.8189,2502.9,2502.4,0.1992]
[1751262988729,0.1992,2502.6,2502.5,6.424]
[1751262990413,0.9708,2502.6,2502.5,6.424]
[1751262990915,0.1992,2502.6,2502.4,1.634]
[1751262991122,0.8279,2502.5,2502.4,1.634]
[1751262991302,1.0271,2502.5,2502.4,8.058]
[1751262991512,1.0271,2502.5,2502.4,1.634]
[1751262991720,1.0271,2502.5,2502.4,8.059]
[1751262992522,0.62156512,2502.5,2502.4,6.425]
[1751262993028,0.8142,2502.4,2502.3,4.76]
[1751262993236,0.8142,2502.4,2502.3,6.425]
[1751262997019,0.8142,2502.4,2502.0,3.1973819]
[1751262997226,0.1992,2502.3,2502.1,8.061]
[1751262997532,0.7937,2502.2,2502.1,8.061]
[1751263001354,0.7937,2502.2,2502.1,11.25831425]
[1751263004265,0.7937,2502.2,2502.1,3.19731425]
[1751263004430,0.7937,2502.2,2502.1,6.424]
[1751263006254,0.7937,2502.2,2502.1,6.427]
[1751263006255,4.40992602,2502.2,2502.1,6.427]
[1751263006460,4.44732602,2502.2,2502.1,6.427]
[1751263007344,1.250097,2502.2,2502.1,6.427]
[1751263007545,0.8311,2502.2,2502.1,6.427]
[1751263011365,0.1992,2502.2,2502.1,9.62430623]
[1751263012666,0.1992,2502.2,2502.1,6.427]
[1751263013773,0.1992,2502.2,2502.1,6.427]
[1751263016384,0.1992,2502.2,2502.1,9.62431425]
[1751263016588,0.56,2502.9,2502.4,3.19686579]
[1751263016589,0.8188,2502.8,2502.4,3.19686579]
[1751263016787,0.1992,2502.6,2502.5,6.424]
[1751263017088,0.1992,2502.6,2502.5,9.62080319]
[1751263018190,0.01,2502.9,2502.6,3.1966576]
[1751263018374,0.2092,2502.9,2502.7,6.424]
[1751263021194,0.2092,2502.9,2502.5,3.1967989]
[1751263021486,0.2092,2502.9,2502.6,6.426]
[1751263023701,3.40549562,2502.9,2502.6,6.426]
[1751263024314,0.2092,2502.9,2502.6,6.426]
[1751263025423,0.8011,2502.7,2502.6,6.426]
[1751263026721,0.8011,2502.7,2502.5,0.02]
[1751263026886,3.99773672,2502.7,2502.6,6.424]
[1751263027280,0.8011,2502.7,2502.6,6.424]
[1751263027805,3.99764772,2502.7,2502.6,6.424]
[1751263028416,0.8011,2502.7,2502.6,6.424]
[1751263030635,0.1992,2502.6,2502.5,0.02]
[1751263030837,3.39587545,2502.6,2502.5,0.02]
[1751263031213,0.1992,2502.6,2502.5,0.02]
[1751263034240,3.39587545,2502.6,2502.5,0.02]
[1751263037752,0.1992,2502.6,2502.5,0.02]
[1751263038917,0.1992,2502.6,2502.5,3.21680319]
[1751263039427,0.1992,2502.6,2502.5,4.58018783]
[1751263039835,0.1992,2502.6,2502.5,1.38338464]
[1751263041131,0.1992,2502.6,2502.5,4.58018783]
[1751263043344,0.01,2502.9,2502.6,3.19660641]
[1751263043549,0.2092,2502.9,2502.7,6.425]
[1751263043735,0.01,2502.9,2502.8,3.19642]
[1751263045485,0.01,2502.9,2502.8,4.55902028]
[1751263046053,0.01,2502.9,2502.8,6.19502028]
[1751263053051,0.01,2502.9,2502.8,2.99860028]
[1751263053251,0.01,2502.9,2502.8,4.83242]
[1751263054803,0.01,2502.9,2502.8,5.62882]
[1751263059084,0.01,2502.9,2502.8,5.64882]
[1751263060013,0.01,2502.9,2502.8,12.07182]
[1751263067812,0.01,2502.9,2502.8,22.07182]
[1751263068003,0.01,2502.9,2502.8,25.70818974]
[1751263070804,0.01,2502.9,2502.8,25.90738974]
[1751263074424,0.01,2502.9,2502.8,17.84838974]
[1751263074619,0.01,2502.9,2502.8,25.90438974]
[1751263082842,0.01,2502.9,2502.8,25.10798974]
[1751263083165,0.01,2502.9,2502.8,21.47162]
[1751263084264,0.01,2502.9,2502.8,0.02]
[1751263084464,0.01,2502.9,2502.8,8.075]
[1751263084872,0.01,2502.9,2502.8,0.02]
[1751263085167,0.01,2502.9,2502.8,6.441]
[1751263086038,0.762,2502.9,2502.8,6.441]
[1751263086769,0.762,2502.9,2502.8,0.02]
[1751263086972,0.762,2502.9,2502.8,6.441]
[1751263094075,0.762,2502.9,2502.8,0.02]
[1751263094254,0.762,2502.9,2502.8,6.441]
[1751263095171,0.762,2502.9,2502.8,9.63742]
[1751263095374,0.01,2502.9,2502.8,9.63742]
[1751263098878,0.01,2502.9,2502.8,7.60540802]
[1751263099083,0.01,2502.9,2502.8,9.63742]
[1751263102683,0.1992,2503.1,2502.8,9.63742]
[1751263105085,0.1992,2503.1,2503.0,3.1961646]
[1751263105285,0.1992,2503.1,2503.0,9.6171646]
[1751263111824,0.1992,2503.1,2503.0,6.421]
[1751263121353,0.1992,2503.1,2503.0,9.6171646]
[1751263121650,0.1992,2503.1,2503.0,10.97827369]
[1751263122153,0.1992,2503.1,2503.0,7.78210909]
[1751263123248,0.1992,2503.1,2503.0,6.421]
[1751263124749,0.1992,2503.1,2503.0,9.6171646]
[1751263125749,1.0045,2503.5,2503.2,3.19587428]
[1751263126426,1.0045,2503.5,2503.1,3.19596987]
[1751263126626,1.0045,2503.5,2503.2,3.19589546]
[1751263127346,1.0045,2503.5,2503.1,5.18895622]
[1751263127721,1.0045,2503.5,2503.2,3.19588615]
[1751263127920,1.0045,2503.5,2503.1,5.18897495]
[1751263130266,1.0045,2503.5,2503.2,3.19588014]
[1751263131067,1.0045,2503.5,2503.1,5.1889738]
[1751263133570,1.0045,2503.5,2503.2,3.19589614]
[1751263133861,0.1992,2503.5,2503.2,3.19589614]
[1751263134779,0.1992,2503.5,2503.1,5.18898012]
[1751263135481,0.1992,2503.5,2503.2,3.19590294]
[1751263135682,0.1992,2503.5,2503.1,5.188981]
[1751263137394,0.1992,2503.5,2503.0,11.4503462]
[1751263137553,0.7699,2503.4,2503.0,11.4503462]
[1751263138363,0.7699,2503.4,2503.1,3.19602838]
[1751263138867,0.5199,2503.4,2503.1,3.19602838]
[1751263140488,0.5199,2503.4,2503.0,11.45027836]
[1751263144097,0.1992,2503.2,2503.0,11.25107836]
[1751263144272,0.1992,2503.2,2503.0,12.717743]
[1751263146171,0.1992,2503.2,2503.1,3.19603691]
[1751263155486,0.1992,2503.2,2503.0,12.71777479]
[1751263156316,0.1992,2503.2,2503.0,6.29677479]
[1751263156612,0.1992,2503.2,2503.1,6.42]
[1751263158398,0.1992,2503.2,2503.0,4.66277479]
[1751263158597,0.1992,2503.2,2503.1,6.42]
[1751263160723,0.1992,2503.2,2503.1,9.61603691]
[1751263167951,0.1992,2503.2,2503.1,3.19603691]